[Event "Bangabandhu Premier Div League 2022"]
[Site "Dhaka"]
[Date "2022.12.08"]
[Round "9.10"]
[White "Chanda, Sandipan"]
[Black "Habibur Rahman, Sohel"]
[Result "1-0"]
[ECO "E74"]
[WhiteElo "2474"]
[BlackElo "1871"]
[Annotator "TA"]
[PlyCount "57"]
[EventDate "2022.11.30"]
[EventType "team-tourn"]
[EventCountry "BAN"]
[SourceTitle "playchess.com"]
[Source "ChessBase"]
[SourceQuality "1"]
[TimeControl "40/5400+30:1800+30"]

{[%evp 14,57,27,27,51,0,54,35,41,39,41,31,31,13,22,0,31,7,7,3,9,-5,65,75,95,99,123,44,156,155,163,156,256,133,329,322,356,344,474,471,522,502,777,784,778,749]} 1. d4 {[%emt 0:00:05]} Nf6 {[%emt 0:00:40]} 2. c4 {[%emt 0:00:09]} c5 {[%emt 0:00:58]} 3. d5 {[%emt 0:00:07]} d6 {[%emt 0:00:33]} 4. Nc3 {[%emt 0:00:11]} g6 {[%emt 0:00:24]} 5. e4 {[%emt 0:00:09]} Bg7 {[%emt 0:00:17]} 6. Be2 {[%emt 0:00:14]} O-O {[%emt 0:02:24]} 7. Bg5 {[%emt 0:00:08]} a6 {[%emt 0:02:39]} 8. Qd2 {[%emt 0:01:39]} Re8 {[%emt 0:00:45] E74: King's Indian: Averbakh Variation: 6...c5.} 9. Rd1 {[%emt 0:03:46] [#]} (9. Nf3 $14) 9... Qc7 $146 {[%emt 0:02:08]} ({Black should try} 9... Qa5 $11) ({Predecessor:} 9... Nbd7 10. Nf3 Rb8 11. a4 Nf8 12. h3 Qc7 13. O-O N8d7 14. Rfe1 e6 15. dxe6 Rxe6 16. Bf4 {½-½ (49) Walter,S (1928)-Muth,A (2070) Floersheim 2016}) 10. Nf3 {[%emt 0:11:39]} Bg4 {[%emt 0:02:44] White is slightly better.} 11. O-O {[%emt 0:00:11]} Nbd7 {[%emt 0:02:01]} 12. h3 {[%emt 0:00:53]} Bxf3 {[%emt 0:00:25]} 13. Bxf3 {[%emt 0:00:27]} Qa5 {[%emt 1:21:02]} 14. a4 {[%emt 0:04:01] Against b5} (14. Be2 {keeps more tension.} b5 15. cxb5 axb5 16. Bxb5 Nxe4 17. Qe2) 14... Qb4 $1 {[%emt 0:00:00]} 15. Be2 {[%emt 0:02:00]} Nb6 $1 {[%emt 0:00:00][%csl LRa4,LRc4]} 16. b3 {[%emt 0:04:31]} Nfd7 {[%emt 0:00:00]} 17. Na2 {[%emt 0:00:24]} Qxd2 {[%emt 0:00:00]} (17... Qxb3 $11 18. Rb1 Qxa4) 18. Bxd2 $14 {[%emt 0:00:27]} e6 {[%emt 0:00:00]} 19. dxe6 {[%emt 0:03:28]} fxe6 {[%emt 0:00:00]} 20. Bf4 {[%emt 0:01:22]} (20. Be3 $16) 20... e5 {[%emt 0:00:00]} (20... Nc8 $14) 21. Be3 $16 {[%emt 0:01:51]} Bf8 {[%emt 0:00:00]} 22. Nc3 {[%emt 0:04:16]} Kf7 {[%emt 0:00:00]} (22... Rab8 $16 {keeps fighting.} 23. h4 Nf6) 23. f4 {[%emt 0:00:58]} (23. a5 $18 Nc8 24. f4) 23... Kg7 $2 {[%emt 0:00:00] [#] This move loses the game for Black.} (23... exf4 $16 24. a5 (24. Bxf4 Kg8 $16) 24... Bg7) 24. f5 $18 {[%emt 0:01:54][%cal Bf4f5,Bf5f6][%mdl 32]} Nf6 {[%emt 0:00:00]} 25. g4 {[%emt 0:00:14][%cal Bg2g4,Bg4g5][%mdl 32]} h6 {[%emt 0:00:00]} 26. h4 {[%emt 0:00:56][%cal Bh3h4,Bh4h5][%mdl 32] Inhibits g5. White is clearly winning.} Rad8 {[%emt 0:00:00]} 27. g5 {[%emt 0:01:01]} Ng8 {[%emt 0:00:00]} (27... hxg5 $142 28. hxg5 Nbd7 29. gxf6+ Nxf6 30. fxg6 Be7) 28. f6+ {[%emt 0:02:17]} Kf7 {[%emt 0:00:00]} 29. h5 {[%emt 0:00:26] Weighted Error Value: White=0.16 (very precise) /Black=0.54} 1-0

[Event "Bangabandhu Premier Div League 2022"]
[Site "Dhaka"]
[Date "2022.12.08"]
[Round "9.11"]
[White "Abdul, Momin"]
[Black "Harsha Bharathakoti"]
[Result "0-1"]
[ECO "B33"]
[WhiteElo "1900"]
[BlackElo "2582"]
[Annotator "TA"]
[PlyCount "68"]
[EventDate "2022.11.30"]
[EventType "team-tourn"]
[EventCountry "BAN"]
[SourceTitle "playchess.com"]
[Source "ChessBase"]
[SourceQuality "1"]
[TimeControl "40/5400+30:1800+30"]

{[%evp 16,68,53,34,43,0,0,0,-4,-4,0,-11,-7,-27,0,-20,-8,-10,-17,-40,-41,-72,-72,-59,-64,-100,-107,-102,-116,-166,-178,-141,-142,-304,-293,-247,-131,-176,-170,-347,-338,-841,-822,-1056,-1072,-1043,-1063,-903,-920,-904,-899,-685,-723,-1074,-940]} 1. e4 {[%emt 0:01:39]} c5 {[%emt 0:00:05]} 2. Nf3 {[%emt 0:00:10]} Nc6 {[%emt 0:00:08]} 3. d4 {[%emt 0:00:12]} cxd4 {[%emt 0:00:05]} 4. Nxd4 {[%emt 0:00:07]} Qb6 {[%emt 0:01:21]} 5. Nb3 {[%emt 0:01:31]} Nf6 {[%emt 0:00:05]} 6. Nc3 {[%emt 0:00:57]} e6 {[%emt 0:00:15]} 7. Be3 {[%emt 0:00:40]} Qc7 {[%emt 0:00:04]} 8. a3 {[%emt 0:03:49]} a6 {[%emt 0:00:15]} 9. Be2 {[%emt 0:01:11]} (9. f4 $5 {[%cal Re4e5]}) 9... d6 {[%emt 0:00:34] B33: Sicilian: Pelikan and Sveshnikov Variations.} 10. a4 {[%emt 0:01:18]} b6 {[%emt 0:02:42]} 11. Qd2 {[%emt 0:01:32]} Be7 {[%emt 0:01:06] The position is equal.} 12. O-O {[%emt 0:00:16]} O-O {[%emt 0:02:30]} 13. Rfd1 {[%emt 0:04:44]} Rb8 {[%emt 0:08:04] [#]} 14. Qe1 $146 {[%emt 0:02:20]} ({Predecessor:} 14. f3 Rd8 15. Bf1 d5 16. exd5 Nb4 17. Bf4 e5 18. d6 Qxd6 19. Qxd6 Rxd6 20. Bxe5 Rxd1 21. Rxd1 {1-0 (72) Schmid,L (2530)-Browne,W (2540) London 1980}) 14... Rd8 {[%emt 0:04:10]} 15. Bf4 {[%emt 0:11:09]} Bb7 {[%emt 0:05:23]} 16. Rac1 {[%emt 0:02:11]} Ne5 {[%emt 0:02:54]} 17. f3 {[%emt 0:02:17]} d5 {[%emt 0:12:40][%cal Oe5f3] White must now prevent ...Nxf3+!} 18. exd5 {[%emt 0:02:13] [#] Threatens to win with Bg3.} Nxf3+ $1 {[%emt 0:00:18][%mdl 64]} 19. Bxf3 {[%emt 0:00:21]} Qxf4 {[%emt 0:00:03]} 20. Rd3 {[%emt 0:03:37]} Bb4 {[%emt 0:15:57][%cal Rf6d5] Black is more active.} (20... Nxd5 $2 21. Bxd5 (21. Nxd5 Bxd5 22. Bxd5 Bf6 $18) 21... Qb4 22. Bxb7 Rxd3 23. cxd3 $18) 21. dxe6 {[%emt 0:02:01]} Rxd3 {[%emt 0:00:30]} 22. exf7+ {[%emt 0:00:40]} (22. cxd3 $17 Bd6 23. Bxb7 Qxh2+ 24. Kf1 Rxb7 25. Ne4 Qh1+ 26. Kf2 Ng4+ 27. Kf3 Ne5+ 28. Kg3 Qxe1+ 29. Rxe1) 22... Kxf7 $19 {[%emt 0:00:02]} 23. cxd3 {[%emt 0:01:23]} Bd6 {[%emt 0:04:16] This pair of bishops is nice.} 24. Ne4 $2 {[%emt 0:08:06] Loses the game.} (24. Qf2 $17 {was worth a try.}) 24... Qxh2+ {[%emt 0:00:03]} 25. Kf1 {[%emt 0:00:03]} Re8 {[%emt 0:08:52]} (25... Bf4 $19 26. Rd1 Nd5) 26. Qf2 {[%emt 0:03:45] Nxf6 is the strong threat.} Bxe4 {[%emt 0:03:32]} ({Stronger than} 26... Qh1+ 27. Ke2 Qh2 28. Kd1 $11) 27. Bxe4 {[%emt 0:01:31]} (27. dxe4 {was the only chance.} Kg8 28. Qd4) 27... Kg8 {[%emt 0:00:28]} 28. Qxb6 $2 {[%emt 0:01:04]} (28. g4 Qh3+ 29. Qg2) 28... Nxe4 {[%emt 0:01:21] Black is clearly winning.} 29. dxe4 {[%emt 0:00:17]} Rf8+ {[%emt 0:00:22][%mdl 64] [#] Deflection} ({And not} 29... Rxe4 30. Nd2 Rf4+ 31. Nf3 Qh1+ 32. Qg1 Qxg1+ 33. Kxg1 $17) 30. Ke2 {[%emt 0:02:29]} Qxg2+ {[%emt 0:00:05]} 31. Kd3 {[%emt 0:00:23]} Qf3+ {[%emt 0:02:56]} 32. Qe3 {[%emt 0:00:29]} Qxe3+ {[%emt 0:00:10]} 33. Kxe3 {[%emt 0:00:02]} Bf4+ {[%emt 0:00:04]} 34. Kd4 {[%emt 0:00:01]} Rd8+ {[%emt 0:00:08] Weighted Error Value: White=0.75/Black=0.09 (flawless)} 0-1

[Event "Bangabandhu Premier Div League 2022"]
[Site "Dhaka"]
[Date "2022.12.08"]
[Round "9.12"]
[White "Mehdi Hasan Parag"]
[Black "Warsia, Khusbu"]
[Result "1-0"]
[ECO "B32"]
[WhiteElo "2185"]
[BlackElo "1540"]
[Annotator "TA"]
[PlyCount "125"]
[EventDate "2022.11.30"]
[EventType "team-tourn"]
[EventCountry "BAN"]
[SourceTitle "playchess.com"]
[Source "ChessBase"]
[SourceQuality "1"]
[TimeControl "40/5400+30:1800+30"]

{[%evp 14,125,25,27,35,22,26,22,22,23,24,27,27,25,30,0,0,0,0,0,0,0,0,0,27,24,33,0,50,48,52,0,55,-34,-49,-172,-170,-179,-168,-270,-276,-261,-276,-256,-193,-202,-202,-202,-85,-83,209,211,316,304,294,280,266,244,239,248,358,343,336,218,433,382,589,589,912,905,862,845,1105,767,1079,1066,1006,973,1066,804,1018,1003,29975,29976,29976,29977,29977,29978,29978,29979,29978,29979,29979,29979,29980,29979,29979,29980,29979,29979,29979,29980,29980,29978,29978,29979,29979,29980,29980,29981,29981,29982,29987,474]} 1. e4 {[%emt 0:00:10]} c5 {[%emt 0:00:22]} 2. Nf3 {[%emt 0:00:07][%cal Bg1f3,Bf3d4,Bd4b5,Bb5a3,Ba3c2][%mdl 32]} Nc6 {[%emt 0:00:17]} 3. d4 {[%emt 0:00:06]} cxd4 {[%emt 0:00:06]} 4. Nxd4 {[%emt 0:00:03]} e5 {[%emt 0:00:13]} 5. Nb5 {[%emt 0:00:17]} d6 {[%emt 0:00:10]} 6. c4 {[%emt 0:00:11]} Be6 {[%emt 0:00:22]} 7. N1c3 {[%emt 0:00:12]} a6 {[%emt 0:00:16]} 8. Na3 {[%emt 0:00:05]} Nf6 {[%emt 0:03:44][%cal Bg8f6,Bf6d7,Bd7c5][%mdl 32] B32: Sicilian: Löwenthal and Kalashnikov Variations.} 9. Be2 {[%emt 0:00:39]} g6 {[%emt 0:00:15] is recently more successful than 9...Be7.} 10. O-O {[%emt 0:00:07]} Bg7 {[%emt 0:00:03] The position is equal.} 11. Nc2 {[%emt 0:00:22]} (11. Bg5 {is more complex.} Nd4 12. Nc2 O-O 13. Nxd4 exd4 14. Nd5) 11... O-O {[%emt 0:00:17]} 12. b3 {[%emt 0:00:10]} (12. Bg5 {with more complications.} Nd4 13. Nxd4 exd4 14. Nd5) 12... Nd4 {[%emt 0:04:13][%cal Ob7b5]} 13. Bb2 {[%emt 0:03:46] [#]} (13. Nxd4 exd4 14. Nd5 (14. Qxd4 $2 Nd5 $19) 14... Nxe4 $17) 13... Nd7 $146 {[%emt 0:04:05]} ({Predecessor:} 13... Nxc2 14. Qxc2 Rc8 15. a4 Nd7 16. Rfd1 Qc7 17. Nd5 Bxd5 18. Rxd5 Nf6 19. Rd2 b5 {1-0 (33) Kaasen,T (2460)-Koutlas,N (2251) Chess.com INT 2022}) 14. Nd5 {[%emt 0:03:30]} (14. Na4 {simplifies} Nxe2+ 15. Qxe2 Rb8 16. Nc3) 14... Bxd5 {[%emt 0:07:46]} 15. cxd5 {[%emt 0:00:59][%cal Rc2d4]} Nxc2 {[%emt 0:02:09]} 16. Qxc2 {[%emt 0:00:05]} Rc8 {[%emt 0:00:06]} 17. Qd2 {[%emt 0:00:29]} Nc5 {[%emt 0:00:27]} 18. f3 {[%emt 0:01:32]} Qb6 {[%emt 0:02:54]} 19. Kh1 $1 {[%emt 0:00:25]} f5 {[%emt 0:06:28]} 20. Qe3 {[%emt 0:02:44]} f4 {[%emt 0:15:02]} (20... Qd8 $11) 21. Qf2 $14 {[%emt 0:00:56]} Qd8 {[%emt 0:01:42]} 22. Rac1 {[%emt 0:01:04]} (22. Rfc1 $14) 22... Bf6 {[%emt 0:03:03]} ({Black should play} 22... Qa5 $11) 23. Qg1 {[%emt 0:02:54]} (23. Bc3 $14) 23... Qa5 $15 {[%emt 0:48:00] [#] White must now prevent ...Qd2.} 24. Bc3 {[%emt 0:16:40] Prevents Qd2.} (24. Qf2 $15) 24... Qxa2 $19 {[%emt 0:00:00]} 25. Bc4 {[%emt 0:02:09] Hoping for Rf2.} Nxb3 {[%emt 0:00:00]} 26. Bb4 {[%emt 0:01:08]} (26. Ra1 $142 Qc2 27. Bxb3 Qxc3 28. Qb6) 26... Qa4 {[%emt 0:00:00][%cal Ob3c1]} 27. Bxb3 {[%emt 0:05:25]} Qxb4 {[%emt 0:00:00]} 28. Rb1 {[%emt 0:00:57]} Qc5 {[%emt 0:00:00] Prevents Bc2.} 29. Rfc1 {[%emt 0:00:40]} Qxg1+ {[%emt 0:00:00]} 30. Kxg1 {[%emt 0:00:02]} b5 {[%emt 0:00:00]} (30... Rxc1+ $19 {and Black stays clearly on top.} 31. Rxc1 Bd8) 31. Rc6 $17 {[%emt 0:00:22]} Rxc6 $4 {[%emt 0:00:00][%mdl 8192] [#]} (31... a5 $17 {stays on course. And now ...Be7 would win.} 32. Bd1 a4 33. Rxd6 a3) 32. dxc6+ {[%emt 0:00:03][%mdl 4096] Endgame KRB-KRB. White stays focused until the end.} Kg7 {[%emt 0:00:00]} (32... Kh8 {is a better defense.}) 33. c7 $18 {[%emt 0:00:57]} Rc8 {[%emt 0:00:00]} 34. Rc1 {[%emt 0:00:02]} Bd8 {[%emt 0:00:00]} 35. cxd8=Q {[%emt 0:01:24]} (35. cxd8=B $2 {perishes.} Rxc1+ 36. Kf2 Rb1 $19) 35... Rxd8 {[%emt 0:00:00] KRB-KR} 36. Rc7+ {[%emt 0:00:21]} Kh6 {[%emt 0:00:00]} (36... Kh8 $142 37. Kf2 Ra8) 37. Ra7 {[%emt 0:01:01]} Rc8 {[%emt 0:00:00]} 38. h4 {[%emt 0:00:11]} ({Weaker is} 38. Rxa6 Rc1+ 39. Kf2 Rb1 $18) 38... g5 $2 {[%emt 0:00:00]} (38... a5 39. Rxa5 Kh5) 39. Rxa6 {[%emt 0:00:31]} Rc1+ {[%emt 0:00:00]} (39... Rd8 $142 40. hxg5+ Kxg5) 40. Kh2 {[%emt 0:00:05]} Kh5 {[%emt 0:00:00]} 41. hxg5 {[%emt 0:30:16]} Kxg5 {[%emt 0:39:00]} 42. Rxd6 {[%emt 0:00:15]} Rc5 {[%emt 0:00:00]} 43. Bg8 {[%emt 0:00:13]} b4 {[%emt 0:00:00]} 44. Rb6 {[%emt 0:58:55]} Rc7 {[%emt 0:00:00]} 45. Rxb4 {[%emt 0:00:00]} Rc6 {[%emt 0:00:00]} 46. Rb5 {[%emt 0:01:00]} ({Not} 46. Bxh7 Rh6+ 47. Kg1 Rxh7 $14) 46... Rh6+ {[%emt 0:00:00]} 47. Kg1 {[%emt 0:00:00]} Kf6 {[%emt 0:00:00]} 48. Rb6+ {[%emt 0:00:00] White mates.} Kg7 {[%emt 0:00:00]} 49. Rxh6 {[%emt 0:00:00]} Kxh6 {[%emt 0:00:00] KB-K3P} 50. Kh2 {[%emt 0:00:00]} Kg7 {[%emt 0:00:00]} 51. Bd5 {[%emt 0:00:00]} Kf6 {[%emt 0:00:00]} 52. Kh3 {[%emt 0:00:00]} Kg5 {[%emt 0:05:30]} 53. Bg8 {[%emt 0:00:00]} h6 {[%emt 0:00:00]} 54. Bf7 {[%emt 0:00:00]} Kf6 {[%emt 0:00:00]} 55. Bc4 {[%emt 0:00:00]} Kg5 {[%emt 0:00:00]} 56. Bb5 {[%emt 0:00:00]} Kh5 {[%emt 0:00:00]} 57. Bd7 {[%emt 0:00:00]} Kg5 {[%emt 0:00:00]} 58. Be8 {[%emt 0:00:00]} Kf6 {[%emt 0:00:00]} 59. Kh4 {[%emt 0:00:00]} Ke7 {[%emt 0:00:00]} 60. Bg6 {[%emt 0:00:00]} Kf6 {[%emt 0:00:00]} 61. Kh5 {[%emt 0:00:00]} Kg7 {[%emt 0:00:00]} 62. Bf5 {[%emt 0:00:00]} Kh8 {[%emt 0:00:00]} 63. Kxh6 {[%emt 0:00:00] Weighted Error Value: White=0.23 (precise) /Black=0.64} (63. Kg6 $142 Kg8 64. Kf6 h5 65. Bg6 Kf8 66. Bxh5 Kg8 67. Kxe5 Kh7 68. Kf5) 1-0

[Event "Bangabandhu Premier Div League 2022"]
[Site "Dhaka"]
[Date "2022.12.09"]
[Round "10.1"]
[White "Hossain, Enamul"]
[Black "abzid, Rahman"]
[Result "1-0"]
[ECO "B05"]
[WhiteElo "2392"]
[BlackElo "2043"]
[Annotator "TA"]
[PlyCount "42"]
[EventDate "2022.11.30"]
[EventType "team-tourn"]
[EventCountry "BAN"]
[SourceTitle "playchess.com"]
[Source "ChessBase"]
[SourceQuality "1"]
[TimeControl "40/5400+30:1800+30"]

{[%evp 9,42,44,58,71,137,76,158,150,147,157,250,243,437,429,425,406,418,428,422,418,464,443,445,447,534,546,662,672,839,768,1033,1028,1177,959,29997]} 1. e4 {[%emt 0:00:07][%cal Be2e4,Be4e5][%mdl 32]} Nf6 {[%emt 0:00:15]} 2. e5 {[%emt 0:00:23]} Nd5 {[%emt 0:00:13]} 3. d4 {[%emt 0:00:12]} d6 {[%emt 0:00:08]} 4. Nf3 {[%emt 0:00:26]} Bg4 {[%emt 0:00:16]} 5. Be2 {[%emt 0:00:13][%cal Bf1e2,Be2g4,Bg4e6][%mdl 32]} Nb6 {[%emt 0:04:00]} 6. h3 {[%emt 0:00:43] B05: Alekhine's Defence: 4 Nf3 Bg4.} Bh5 {[%emt 0:00:50] [#]} ({Better is} 6... Bf5) 7. a4 {[%emt 0:01:01]} (7. e6 $142 $1 {Threatens to win with Ng5.} fxe6 8. Ng5 Bxe2 9. Qxe2) 7... a5 {[%emt 0:00:15] [#]} ({Black should try} 7... dxe5 8. a5 (8. Nxe5 Bxe2 9. Qxe2 Qxd4 $14) (8. dxe5 Qxd1+ 9. Bxd1 e6 $11) 8... N6d7) 8. e6 $1 $16 {[%emt 0:01:10] White is clearly better.} fxe6 {[%emt 0:00:47]} 9. Ng5 {[%emt 0:00:11][%csl LRe6,LRh5]} Bf7 {[%emt 0:10:02]} (9... Bxe2 $16 {keeps fighting.} 10. Qxe2 Nc6) 10. Bg4 $18 {[%emt 0:01:48] [#]} c6 $146 {[%emt 0:11:02]} (10... Qc8 {was worth a try.} 11. Nxf7 (11. Qf3 Bg8 $16) 11... Kxf7) ({Predecessor:} 10... Qd7 11. O-O Nc6 12. Re1 Nd8 13. d5 Nxd5 14. Nxf7 Kxf7 15. Bxe6+ Nxe6 16. Qxd5 c6 17. Qf5+ {1-0 (17) Najer,E (2648)-Gazik,V (2539) Chess.com INT 2020}) 11. Nxf7 {[%emt 0:04:29]} (11. Nxe6 Bxe6 12. Bxe6 Nd5 $18) 11... Kxf7 {[%emt 0:00:16]} 12. Qf3+ {[%emt 0:00:11][%mdl 64] Deflection} Ke8 {[%emt 0:00:03]} 13. Bxe6 {[%emt 0:00:10][%csl Ge6][%cal Rf3f7]} Qc7 {[%emt 0:00:27]} 14. c4 {[%emt 0:01:12][%cal Bc2c4,Bc4c5,Bc5d6][%mdl 32]} N8d7 {[%emt 0:00:49]} 15. Nc3 {[%emt 0:00:24] White is clearly winning.} ({Weaker is} 15. c5 Nd5 16. Nc3 (16. cxd6 Qxd6 17. Bf7+ Kd8 $16) 16... N5f6 $18) 15... Nf6 {[%emt 0:02:40]} 16. O-O {[%emt 0:03:21]} g6 {[%emt 0:05:09]} 17. c5 {[%emt 0:06:24]} Nbd7 {[%emt 0:01:03]} 18. Bf4 {[%emt 0:02:06] Against d5} Bg7 {[%emt 0:00:41]} 19. Rac1 {[%emt 0:01:44]} Rf8 {[%emt 0:00:42]} 20. cxd6 {[%emt 0:00:42]} Qb6 {[%emt 0:01:19]} 21. Qe2 {[%emt 0:01:46] Hoping for Rfe1.} Qxd4 {[%emt 0:07:22] Black did not feel at home in the position after the opening.   Weighted Error Value: White=0.07 (flawless) /Black=0.64} 1-0

[Event "Bangabandhu Premier Div League 2022"]
[Site "Dhaka"]
[Date "2022.12.09"]
[Round "10.1"]
[White "Hrishin, Talukder"]
[Black "Shawket Bin, Osman Shaon"]
[Result "0-1"]
[ECO "B01"]
[WhiteElo "1673"]
[BlackElo "2069"]
[Annotator "TA"]
[PlyCount "82"]
[EventDate "2022.12.01"]
[EventCountry "BAN"]
[SourceTitle "playchess.com"]
[Source "ChessBase"]
[SourceQuality "1"]
[TimeControl "40/5400+30:1800+30"]

{[%evp 10,82,48,22,21,0,4,-8,-1,-8,0,-10,-8,-4,-6,-11,0,-18,0,-20,-19,-14,-6,-12,-10,-32,-10,-36,-11,0,-6,-13,0,-14,13,-22,0,-18,0,0,0,0,0,-4,-4,-6,-2,-7,0,-29,-22,-29,-37,-27,-9,-22,-18,-18,-10,-168,-66,-62,-3,-8,0,0,0,0,0,0,0,-234,-214,-29983,-29983]} 1. e4 {[%emt 0:00:04]} d5 {[%emt 0:00:12]} 2. exd5 {[%emt 0:00:04]} Qxd5 {[%emt 0:00:08]} 3. Nc3 {[%emt 0:00:02]} Qa5 {[%emt 0:00:11]} 4. d4 {[%emt 0:01:43]} Nf6 {[%emt 0:00:30]} 5. Bc4 {[%emt 1:31:07]} c6 {[%emt 0:02:49]} 6. h3 {[%emt 0:00:00]} Bf5 {[%emt 1:29:40] B01: Scandinavian Defence.} 7. Bf4 {[%emt 0:01:00]} e6 {[%emt 0:00:00]} 8. Nge2 {[%emt 0:00:30]} Nbd7 {[%emt 0:01:00] The position is equal.} 9. O-O {[%emt 0:00:00]} Be7 {[%emt 0:00:00]} 10. Qd2 {[%emt 0:01:00] [#]} Qb6 $146 {[%emt 0:01:00]} ({Predecessor:} 10... O-O 11. Nd5 Qd8 12. Nxe7+ Qxe7 13. Rfe1 Nb6 14. Bb3 Rfd8 15. Ng3 Bg6 16. c4 h6 {1-0 (35) Popova,N (2233)-Dudys,J (2099) Rewal 2006}) 11. Bd3 {[%emt 0:00:00]} Bxd3 {[%emt 0:00:30]} 12. Qxd3 {[%emt 0:00:00]} O-O {[%emt 0:00:30]} 13. Rfe1 {[%emt 0:01:30]} Rfe8 {[%emt 0:00:30]} 14. a3 {[%emt 0:00:30]} Rad8 {[%emt 0:00:30]} 15. b4 {[%emt 0:00:00]} e5 {[%emt 0:00:00]} 16. Na4 {[%emt 0:01:00]} Qc7 {[%emt 0:01:00]} 17. Bh2 {[%emt 0:00:30]} Bd6 {[%emt 0:00:00]} 18. Rad1 {[%emt 0:00:30]} exd4 {[%emt 0:00:00]} 19. Bxd6 {[%emt 0:00:00]} Qxd6 {[%emt 0:01:30]} 20. Qxd4 {[%emt 0:00:00]} Qc7 {[%emt 0:00:30]} (20... Qxd4 {simplifies} 21. Rxd4 Rc8 22. Rdd1 b5) 21. Qa1 {[%emt 0:01:30]} (21. Qxa7 $2 Ra8 22. Qd4 Rxa4 $19) 21... Ne5 {[%emt 0:00:00]} 22. Nc5 {[%emt 0:00:00]} b6 {[%emt 0:00:00] Hoping for ...Rxd1.} (22... Rxd1 {simplifies} 23. Qxd1 b6 24. Nb3 Nc4) 23. Nb3 {[%emt 0:01:00]} Nc4 {[%emt 0:00:00]} (23... Rxd1 {simplifies} 24. Qxd1 Nc4 25. Qa1 h6) 24. Ned4 {[%emt 0:00:00]} Nd5 {[%emt 0:02:00]} 25. Nf5 {[%emt 0:01:00][%csl Gf5][%cal Ra1g7]} f6 {[%emt 0:00:30]} 26. Nbd4 {[%emt 0:00:30] Black must now prevent Ne6.} Qd7 {[%emt 0:00:30] Against Ne6} 27. Qa2 {[%emt 0:00:30]} b5 {[%emt 0:00:30]} 28. Qb3 {[%emt 0:00:30] Against Nc3} g6 {[%emt 0:00:30]} (28... Rxe1+ {simplifies} 29. Rxe1 Re8 30. Rxe8+ Qxe8 31. Nf3 Qe4) 29. Nh6+ {[%emt 0:00:30]} (29. Rxe8+ {simplifies} Rxe8 30. Ng3 a5 31. bxa5 Nxa5 32. Qd3) 29... Kg7 {[%emt 0:00:00]} 30. Ng4 {[%emt 0:00:00]} Rxe1+ {[%emt 0:00:00]} 31. Rxe1 {[%emt 0:00:15] Threatens to win with Ne6+.} Nf4 {[%emt 0:01:30] Against Ne6+} (31... Re8 {simplifies} 32. Rxe8 Qxe8 33. Ne3 Ndxe3 34. fxe3 Qxe3+ 35. Qxe3 Nxe3 36. Kf2 Nc4) 32. c3 {[%emt 0:01:15]} Re8 {[%emt 0:00:30]} 33. Qd1 {[%emt 0:00:30][%cal Od4e6]} Qd5 {[%emt 0:00:30][%csl Gf4][%cal Rd5g2]} (33... Nxa3 $2 {[#]} 34. Ne6+ $1 {[%mdl 512]} Qxe6 35. Rxe6 Nxe6 36. Qd7+ Kf8 37. Qxh7 $18) (33... Nd5 {simplifies} 34. Rxe8 Qxe8 35. Nxb5 h5) 34. Nf3 $2 {[%emt 0:00:30]} (34. f3 $11 Rxe1+ 35. Qxe1) 34... Rxe1+ $40 {[%emt 0:00:00][%mdl 128] Black mounts an attack. Chess con chili.} (34... Nxa3 35. Ne3 Qxd1 36. Rxd1 $11) (34... h5 $19 35. Ne3 Qxd1 36. Nxd1 Rxe1+ 37. Nxe1 Nxa3) 35. Qxe1 $15 {[%emt 0:00:30]} h5 {[%emt 0:00:21] Black has more active pieces.} (35... Nxa3 36. Qe3 (36. Qe7+ Qf7 $11) 36... h5 37. Qxf4 $16 (37. Qxa7+ Qf7 $11)) (35... Kf7 $15) 36. Ne3 $11 ({But not} 36. Qe7+ Qf7 37. Qxf7+ Kxf7 $17) 36... Nxh3+ {[%emt 0:00:01]} 37. gxh3 Qxf3 {[%emt 0:01:38]} 38. Nxc4 {[%emt 0:00:34]} bxc4 {[%emt 0:00:30]} 39. Qe7+ {[%emt 0:01:26]} Kh6 {[%emt 0:00:30]} 40. Qxa7 $2 {[%emt 0:00:00]} (40. h4 $1 $11 {and White stays safe.}) 40... Qxc3 $19 {[%emt 0:00:00] aiming for ...Qe1+.} 41. Qe3+ {[%emt 0:29:15] [#]} (41. Qc5 $19 Qe1+ 42. Kg2) 41... Qxe3 {[%emt 0:28:47] Weighted Error Value: White=0.39/Black=0.13 (very precise)} 0-1